fUSD/lending_fUSD_20240117
["ID","MTS","AMOUNT","RATE_DAILY","PERIOD"]
[311972348,1705523465230,-1569.41,0.00022231,2]
[311972349,1705523465240,-296.57,0.00022245,2]
[311972350,1705523465250,-164.55,0.00022251,2]
[311972351,1705523465259,-261.76,0.00022253,2]
[311972352,1705523465269,-749.43,0.00022255,2]
[311972353,1705523465280,-150.0,0.00022261,2]
[311972354,1705523465290,-290.78253396,0.00022281,2]
[311972355,1705523465301,-224.57098569,0.00022281,2]
[311972356,1705523465310,-150.0,0.0002233,2]
[311972357,1705523465320,-160.47,0.00022349,2]
[311972358,1705523465330,-250.0,0.00022365,2]
[311972359,1705523465340,-389.12675736,0.00022365,2]
[311972360,1705523465349,-165.92298531,0.00022365,2]
[311972361,1705523465359,-891.96499955,0.00022376,2]
[311972362,1705523465369,-150.0,0.00022406,2]
[311972363,1705523465378,-2000.0,0.00022413,2]
[311972364,1705523465388,-2000.0,0.00022413,2]
[311972365,1705523465397,-200.0,0.00022413,2]
[311972366,1705523465408,-290.78253396,0.00022436,2]
[311972367,1705523465418,-224.57098569,0.00022436,2]
[311972368,1705523465427,-389.12675731,0.00022441,2]
[311972369,1705523465437,-204.11287,0.00022461,2]
[311972370,1705523465446,-500.0,0.00022464,2]
[311972371,1705523465456,-150.0,0.00022464,2]
[311972372,1705523465466,-1357.3,0.00022464,2]
[311972373,1705523465475,-314.21258838,0.00022464,2]
[311972374,1705523465485,-151.0,0.00022465,7]
[311972375,1705523465494,-151.0,0.00022465,7]
[311972376,1705523465504,-151.0,0.00022465,7]
[311972377,1705523465513,-151.0,0.00022465,7]
[311972378,1705523465523,-151.0,0.00022465,7]
[311972379,1705523465533,-151.0,0.00022465,7]
[311972380,1705523465543,-151.0,0.00022465,7]
[311972381,1705523465553,-151.0,0.00022465,7]
[311972382,1705523465563,-151.0,0.00022465,7]
[311972383,1705523465572,-151.0,0.00022465,7]
[311972384,1705523465582,-151.0,0.00022465,7]
[311972385,1705523465591,-151.0,0.00022465,7]
[311972386,1705523465659,-151.0,0.00022465,7]
[311972387,1705523465669,-151.0,0.00022465,7]
[311972388,1705523465678,-296.57,0.00022465,2]
[311972389,1705523465688,-500.0,0.00022465,2]
[311972390,1705523465698,-500.0,0.00022465,2]
[311972391,1705523465707,-500.0,0.00022465,2]
[311972392,1705523465716,-500.0,0.00022465,2]
[311972393,1705523465726,-500.0,0.00022465,2]
[311972394,1705523465736,-519.37,0.00022465,2]
[311972395,1705523465745,-500.0,0.00022465,2]
[311972396,1705523465754,-500.0,0.00022465,2]
[311972397,1705523465764,-500.0,0.00022465,2]
[311972398,1705523465773,-500.0,0.00022465,2]
[311972399,1705523465783,-500.0,0.00022465,2]
[311972400,1705523465793,-500.0,0.00022465,2]
[311972401,1705523465803,-500.0,0.00022465,2]
[311972402,1705523465812,-300.0,0.00022465,2]
[311972403,1705523465821,-500.0,0.00022465,2]
[311972404,1705523465831,-365.14,0.00022465,2]
[311972405,1705523465840,-500.0,0.00022465,2]
[311972406,1705523465849,-636.45,0.00022465,2]
[311972407,1705523465859,-500.0,0.00022465,2]
[311972408,1705523465869,-500.0,0.00022465,2]
[311972409,1705523465879,-500.0,0.00022465,2]
[311972410,1705523465889,-500.0,0.00022465,2]
[311972411,1705523465899,-500.0,0.00022465,2]
[311972412,1705523465911,-500.0,0.00022465,2]
[311972413,1705523465920,-500.0,0.00022465,2]
[311972414,1705523465930,-578.6,0.00022465,2]
[311972415,1705523465939,-500.0,0.00022465,2]
[311972416,1705523465949,-500.0,0.00022465,2]
[311972417,1705523465959,-450.78,0.00022465,2]
[311972418,1705523465971,-500.0,0.00022465,2]
[311972419,1705523465981,-258.22,0.00022465,2]
[311972420,1705523465991,-500.0,0.00022465,2]
[311972421,1705523466002,-500.0,0.00022465,2]
[311972422,1705523466015,-365.66,0.00022465,2]
[311972423,1705523466025,-500.0,0.00022465,2]
[311972424,1705523466034,-500.0,0.00022465,2]
[311972425,1705523466044,-300.68,0.00022465,2]
[311972426,1705523466053,-500.0,0.00022465,2]
[311972427,1705523466064,-500.0,0.00022465,2]
[311972428,1705523466073,-500.0,0.00022465,2]
[311972429,1705523466084,-500.0,0.00022465,2]
[311972430,1705523466093,-500.0,0.00022465,2]
[311972431,1705523466104,-204.83,0.00022465,2]
[311972432,1705523466113,-500.0,0.00022465,2]
[311972433,1705523466123,-500.0,0.00022465,2]
[311972434,1705523466132,-500.0,0.00022465,2]
[311972435,1705523466142,-500.0,0.00022465,2]
[311972436,1705523466151,-500.0,0.00022465,2]
[311972437,1705523466161,-500.0,0.00022465,2]
[311972438,1705523466170,-638.34,0.00022465,2]
[311972439,1705523466181,-500.0,0.00022465,2]
[311972440,1705523466191,-392.19,0.00022465,2]
[311972441,1705523466200,-622.36,0.00022465,2]
[311972442,1705523466210,-500.0,0.00022465,2]
[311972443,1705523466219,-500.0,0.00022465,2]
[311972444,1705523466229,-500.0,0.00022465,2]
[311972445,1705523466238,-500.0,0.00022465,2]
[311972446,1705523466247,-500.0,0.00022465,2]
[311972447,1705523466257,-648.73,0.00022465,2]
[311972448,1705523466266,-397.18,0.00022465,2]
[311972449,1705523466276,-500.0,0.00022465,2]
[311972450,1705523466287,-506.1,0.00022465,2]
[311972451,1705523466296,-500.0,0.00022465,2]
[311972452,1705523466307,-500.0,0.00022465,2]
[311972453,1705523466316,-522.72960117,0.00022465,2]
[311972454,1705523466326,-500.0,0.00022465,2]
[311972455,1705523466336,-500.0,0.00022465,2]
[311972456,1705523466346,-500.0,0.00022465,2]
[311972457,1705523466355,-500.0,0.00022465,2]
[311972458,1705523466365,-409.23,0.00022465,2]
[311972459,1705523466375,-500.0,0.00022465,2]
[311972460,1705523466385,-500.0,0.00022465,2]
[311972461,1705523466395,-500.0,0.00022465,2]
[311972462,1705523466405,-500.0,0.00022465,2]
[311972463,1705523466416,-500.0,0.00022465,2]
[311972464,1705523466426,-500.0,0.00022465,2]
[311972465,1705523466436,-500.0,0.00022465,2]
[311972466,1705523466445,-500.0,0.00022465,2]
[311972467,1705523466456,-500.0,0.00022465,2]
[311972468,1705523466466,-500.0,0.00022465,2]
[311972469,1705523466476,-500.0,0.00022465,2]
[311972470,1705523466485,-500.0,0.00022465,2]
[311972471,1705523466495,-500.0,0.00022465,2]
[311972472,1705523466505,-500.0,0.00022465,2]
[311972473,1705523466514,-500.0,0.00022465,2]
[311972474,1705523466524,-500.0,0.00022465,2]
[311972475,1705523466534,-194.7,0.00022465,2]
[311972476,1705523466544,-500.0,0.00022465,2]
[311972477,1705523466555,-518.68,0.00022465,2]
[311972478,1705523466565,-500.0,0.00022465,2]
[311972479,1705523466575,-500.0,0.00022465,2]
[311972480,1705523466584,-500.0,0.00022465,2]
[311972481,1705523466594,-500.0,0.00022465,2]
[311972482,1705523466603,-500.0,0.00022465,2]
[311972483,1705523466613,-500.0,0.00022465,2]
[311972484,1705523466623,-500.0,0.00022465,2]
[311972485,1705523466633,-500.0,0.00022465,2]
[311972486,1705523466643,-500.0,0.00022465,2]
[311972487,1705523466653,-500.0,0.00022465,2]
[311972488,1705523466663,-500.0,0.00022465,2]
[311972489,1705523466673,-500.0,0.00022465,2]
[311972490,1705523466683,-500.0,0.00022465,2]
[311972491,1705523466693,-324.80251257,0.00022465,2]
[311972492,1705523466702,-500.0,0.00022465,2]
[311972493,1705523466711,-500.0,0.00022465,2]
[311972494,1705523466721,-500.0,0.00022465,2]
[311972495,1705523466731,-434.21,0.00022465,2]
[311972496,1705523466740,-500.0,0.00022465,2]
[311972497,1705523466750,-500.0,0.00022465,2]
[311972498,1705523466760,-500.0,0.00022465,2]
[311972499,1705523466769,-238.4,0.00022465,2]
[311972500,1705523466778,-500.0,0.00022465,2]
[311972501,1705523466788,-493.1,0.00022465,2]
[311972502,1705523466797,-500.0,0.00022465,2]
[311972503,1705523466806,-500.0,0.00022465,2]
[311972504,1705523466815,-396.6,0.00022465,2]
[311972505,1705523466824,-500.0,0.00022465,2]
[311972506,1705523466834,-500.0,0.00022465,2]
[311972507,1705523466843,-500.0,0.00022465,2]
[311972508,1705523466852,-517.81984418,0.00022465,2]
[311972509,1705523466861,-500.0,0.00022465,2]
[311972510,1705523466871,-500.0,0.00022465,2]
[311972511,1705523466880,-500.0,0.00022465,2]
[311972512,1705523466889,-228.08,0.00022465,2]
[311972513,1705523466898,-500.0,0.00022465,2]
[311972514,1705523466911,-500.0,0.00022465,2]
[311972515,1705523466921,-500.0,0.00022465,2]
[311972516,1705523466931,-500.0,0.00022465,2]
[311972517,1705523466940,-500.0,0.00022465,2]
[311972518,1705523466950,-500.0,0.00022465,2]
[311972519,1705523466959,-500.0,0.00022465,2]
[311972520,1705523466970,-500.0,0.00022465,2]
[311972521,1705523466980,-500.0,0.00022465,2]
[311972522,1705523466989,-500.0,0.00022465,2]
[311972523,1705523466999,-500.0,0.00022465,2]
[311972524,1705523467008,-646.41,0.00022465,2]
[311972525,1705523467017,-500.0,0.00022465,2]
[311972526,1705523467026,-500.0,0.00022465,2]
[311972527,1705523467036,-500.0,0.00022465,2]
[311972528,1705523467045,-500.0,0.00022465,2]
[311972529,1705523467053,-500.0,0.00022465,2]
[311972530,1705523467062,-500.0,0.00022465,2]
[311972531,1705523467071,-328.46,0.00022465,2]
[311972532,1705523467082,-500.0,0.00022465,2]
[311972533,1705523467092,-500.0,0.00022465,2]
[311972534,1705523467101,-500.0,0.00022465,2]
[311972535,1705523467110,-500.0,0.00022465,2]
[311972536,1705523467120,-441.73,0.00022465,2]
[311972537,1705523467129,-615.58868029,0.00022465,2]
[311972538,1705523467138,-480.01,0.00022465,2]
[311972539,1705523467147,-595.91,0.00022465,2]
[311972540,1705523467157,-500.0,0.00022465,2]
[311972541,1705523467166,-500.0,0.00022465,2]
[311972542,1705523467175,-500.0,0.00022465,2]
[311972543,1705523467191,-500.0,0.00022465,2]
[311972544,1705523467200,-500.0,0.00022465,2]
[311972545,1705523467209,-500.0,0.00022465,2]
[311972546,1705523467220,-500.0,0.00022465,2]
[311972547,1705523467229,-500.0,0.00022465,2]
[311972548,1705523467239,-500.0,0.00022465,2]
[311972549,1705523467248,-391.78,0.00022465,2]
[311972550,1705523467257,-500.0,0.00022465,2]
[311972551,1705523467267,-205.59,0.00022465,2]
[311972552,1705523467277,-500.0,0.00022465,2]
[311972553,1705523467286,-500.0,0.00022465,2]
[311972554,1705523467296,-500.0,0.00022465,2]
[311972555,1705523467306,-500.0,0.00022465,2]
[311972556,1705523467315,-500.0,0.00022465,2]
[311972557,1705523467324,-500.0,0.00022465,2]
[311972558,1705523467334,-544.36,0.00022465,2]
[311972559,1705523467343,-612.4,0.00022465,2]
[311972560,1705523467353,-500.0,0.00022465,2]
[311972561,1705523467362,-374.63,0.00022465,2]
[311972562,1705523467371,-500.0,0.00022465,2]
[311972563,1705523467381,-500.0,0.00022465,2]
[311972564,1705523467391,-500.0,0.00022465,2]
[311972565,1705523467401,-500.0,0.00022465,2]
[311972566,1705523467411,-500.0,0.00022465,2]
[311972567,1705523467421,-500.0,0.00022465,2]
[311972568,1705523467431,-500.0,0.00022465,2]
[311972569,1705523467440,-487.85,0.00022465,2]
[311972570,1705523467450,-500.0,0.00022465,2]
[311972571,1705523467460,-500.0,0.00022465,2]
[311972572,1705523467469,-500.0,0.00022465,2]
[311972573,1705523467479,-474.28,0.00022465,2]
[311972574,1705523467488,-500.0,0.00022465,2]
[311972575,1705523467497,-500.0,0.00022465,2]
[311972576,1705523467506,-500.0,0.00022465,2]
[311972577,1705523467516,-500.0,0.00022465,2]
[311972578,1705523467525,-500.0,0.00022465,2]
[311972579,1705523467534,-191.85236811,0.00022465,2]
[311972580,1705523467544,-513.05156447,0.00022465,2]
[311972581,1705523467554,-500.0,0.00022465,2]
[311972582,1705523467563,-396.62,0.00022465,2]
[311972583,1705523467573,-500.0,0.00022465,2]
[311972584,1705523467582,-500.0,0.00022465,2]
[311972585,1705523467591,-500.0,0.00022465,2]
[311972586,1705523467601,-500.0,0.00022465,2]
[311972587,1705523467611,-500.0,0.00022465,2]
[311972588,1705523467620,-500.0,0.00022465,2]
[311972589,1705523467630,-500.0,0.00022465,2]
[311972590,1705523467640,-500.0,0.00022465,2]
[311972591,1705523467649,-500.0,0.00022465,2]
[311972592,1705523467660,-500.0,0.00022465,2]
[311972593,1705523467669,-500.0,0.00022465,2]
[311972594,1705523467679,-500.0,0.00022465,2]
[311972595,1705523467688,-500.0,0.00022465,2]
[311972596,1705523467697,-500.0,0.00022465,2]
[311972597,1705523467707,-500.0,0.00022465,2]
[311972598,1705523467716,-416.39,0.00022465,2]
[311972599,1705523467725,-500.0,0.00022465,2]
[311972600,1705523467734,-500.0,0.00022465,2]
[311972601,1705523467744,-500.0,0.00022465,2]
[311972602,1705523467753,-510.0,0.00022465,2]
[311972603,1705523467762,-500.0,0.00022465,2]
[311972604,1705523467771,-270.78,0.00022465,2]
[311972605,1705523467780,-500.0,0.00022465,2]
[311972606,1705523467790,-527.34,0.00022465,2]
[311972607,1705523467799,-500.0,0.00022465,2]
[311972608,1705523467809,-500.0,0.00022465,2]
[311972609,1705523467818,-447.14,0.00022465,2]
[311972610,1705523467827,-500.0,0.00022465,2]
[311972611,1705523467837,-485.36,0.00022465,2]
[311972612,1705523467846,-305.87,0.00022465,2]
[311972613,1705523467855,-194.44819625,0.00022465,2]
[311972614,1705523467864,-500.0,0.00022465,2]
[311972615,1705523467874,-500.0,0.00022465,2]
[311972616,1705523467883,-500.0,0.00022465,2]
[311972617,1705523467892,-637.09,0.00022465,2]
[311972618,1705523467901,-500.0,0.00022465,2]
[311972619,1705523467910,-244.74,0.00022465,2]
[311972620,1705523467920,-500.0,0.00022465,2]
[311972621,1705523467929,-340.72,0.00022465,2]
[311972622,1705523467939,-172.31837315,0.00022465,2]
[311972623,1705523467948,-500.0,0.00022465,2]
[311972624,1705523467957,-637.0,0.00022465,2]
[311972625,1705523467966,-542.48,0.00022465,2]
[311972626,1705523467975,-500.0,0.00022465,2]
[311972627,1705523467986,-500.0,0.00022465,2]
[311972628,1705523467994,-500.0,0.00022465,2]
[311972629,1705523468003,-500.0,0.00022465,2]
[311972630,1705523468012,-171.25,0.00022465,2]
[311972631,1705523468021,-500.0,0.00022465,2]
[311972632,1705523468031,-500.0,0.00022465,2]
[311972633,1705523468040,-500.0,0.00022465,2]
[311972634,1705523468049,-500.0,0.00022465,2]
[311972635,1705523468058,-500.0,0.00022465,2]
[311972636,1705523468068,-500.0,0.00022465,2]
[311972637,1705523468078,-500.0,0.00022465,2]
[311972638,1705523468087,-500.0,0.00022465,2]
[311972639,1705523468097,-500.0,0.00022465,2]
[311972640,1705523468107,-500.0,0.00022465,2]
[311972641,1705523468116,-500.0,0.00022465,2]
[311972642,1705523468125,-500.0,0.00022465,2]
[311972643,1705523468135,-500.0,0.00022465,2]
[311972644,1705523468144,-500.0,0.00022465,2]
[311972645,1705523468154,-500.0,0.00022465,2]
[311972646,1705523468163,-500.0,0.00022465,2]
[311972647,1705523468173,-500.0,0.00022465,2]
[311972648,1705523468182,-500.0,0.00022465,2]
[311972649,1705523468191,-500.0,0.00022465,2]
[311972650,1705523468201,-638.64,0.00022465,2]
[311972651,1705523468210,-500.0,0.00022465,2]
[311972652,1705523468220,-500.0,0.00022465,2]
[311972653,1705523468229,-500.0,0.00022465,2]
[311972654,1705523468239,-500.0,0.00022465,2]
[311972655,1705523468249,-500.0,0.00022465,2]
[311972656,1705523468258,-274.04,0.00022465,2]
[311972657,1705523468268,-500.0,0.00022465,2]
[311972658,1705523468278,-500.0,0.00022465,2]
[311972659,1705523468287,-500.0,0.00022465,2]
[311972660,1705523468297,-388.5,0.00022465,2]
[311972661,1705523468307,-500.0,0.00022465,2]
[311972662,1705523468318,-399.33,0.00022465,2]
[311972663,1705523468328,-500.0,0.00022465,2]
[311972664,1705523468338,-500.0,0.00022465,2]
[311972665,1705523468347,-500.0,0.00022465,2]
[311972666,1705523468357,-518.27,0.00022465,2]
[311972667,1705523468367,-500.0,0.00022465,2]
[311972668,1705523468376,-500.0,0.00022465,2]
[311972669,1705523468385,-500.0,0.00022465,2]
[311972670,1705523468394,-500.0,0.00022465,2]
[311972671,1705523468406,-416.99,0.00022465,2]
[311972672,1705523468417,-334.23,0.00022465,2]
[311972673,1705523468427,-500.0,0.00022465,2]
[311972674,1705523468437,-500.0,0.00022465,2]
[311972675,1705523468447,-500.0,0.00022465,2]
[311972676,1705523468458,-500.0,0.00022465,2]
[311972677,1705523468469,-500.0,0.00022465,2]
[311972678,1705523468479,-500.0,0.00022465,2]
[311972679,1705523468489,-500.0,0.00022465,2]
[311972680,1705523468499,-500.0,0.00022465,2]
[311972681,1705523468509,-810.95,0.00022465,2]
[311972682,1705523468519,-500.0,0.00022465,2]
[311972683,1705523468529,-500.0,0.00022465,2]
[311972684,1705523468538,-500.0,0.00022465,2]
[311972685,1705523468548,-1518.81,0.00022465,2]
[311972686,1705523468558,-962.31,0.00022465,2]
[311972687,1705523468567,-500.0,0.00022465,2]
[311972688,1705523468580,-215.39,0.00022465,2]
[311972689,1705523468591,-1471.89,0.00022465,2]
[311972690,1705523468601,-1697.36,0.00022465,2]
[311972691,1705523468611,-500.0,0.00022465,2]
[311972692,1705523468620,-500.0,0.00022465,2]
[311972693,1705523468630,-500.0,0.00022465,2]
[311972694,1705523468640,-500.0,0.00022465,2]
[311972695,1705523468649,-497.9485893,0.00022465,2]
[311972696,1705523468666,-630.86,0.00022465,2]
[311972697,1705523468676,-626.99,0.00022465,2]
[311972698,1705523468687,-500.0,0.00022465,2]
[311972699,1705523468697,-500.0,0.00022465,2]
[311972700,1705523468707,-500.0,0.00022465,2]
[311972701,1705523468717,-500.0,0.00022465,2]
[311972702,1705523468727,-500.0,0.00022465,2]
[311972703,1705523468736,-248.07,0.00022465,2]
[311972704,1705523468745,-500.0,0.00022465,2]
[311972705,1705523468757,-500.0,0.00022465,2]
[311972706,1705523468766,-670.1,0.00022465,2]
[311972707,1705523468776,-500.0,0.00022465,2]
[311972708,1705523468785,-500.0,0.00022465,2]
[311972709,1705523468795,-500.0,0.00022465,2]
[311972710,1705523468805,-500.0,0.00022465,2]
[311972711,1705523468815,-500.0,0.00022465,2]
[311972712,1705523468826,-539.96655389,0.00022465,2]
[311972713,1705523468836,-500.0,0.00022465,2]
[311972714,1705523468846,-336.09,0.00022465,2]
[311972715,1705523468856,-500.0,0.00022465,2]
[311972716,1705523468866,-902.67,0.00022465,2]
[311972717,1705523468876,-500.0,0.00022465,2]
[311972718,1705523468886,-500.0,0.00022465,2]
[311972719,1705523468896,-500.0,0.00022465,2]
[311972720,1705523468909,-1005.81,0.00022465,2]
[311972721,1705523468919,-500.0,0.00022465,2]
[311972722,1705523468929,-500.0,0.00022465,2]
[311972723,1705523468939,-500.0,0.00022465,2]
[311972724,1705523468948,-500.0,0.00022465,2]
[311972725,1705523468958,-500.0,0.00022465,2]
[311972726,1705523468968,-558.11,0.00022465,2]
[311972727,1705523468978,-1088.87,0.00022465,2]
[311972728,1705523468990,-500.0,0.00022465,2]
[311972729,1705523469000,-625.28,0.00022465,2]
[311972730,1705523469010,-500.0,0.00022465,2]
[311972731,1705523469019,-632.74,0.00022465,2]
[311972732,1705523469030,-500.0,0.00022465,2]
[311972733,1705523469041,-600.17,0.00022465,2]
[311972734,1705523469050,-500.0,0.00022465,2]
[311972735,1705523469061,-540.8,0.00022465,2]
[311972736,1705523469071,-500.0,0.00022465,2]
[311972737,1705523469082,-598.24,0.00022465,2]
[311972738,1705523469091,-6978.36,0.00022465,2]
[311972739,1705523469101,-500.0,0.00022465,2]
[311972740,1705523469110,-500.0,0.00022465,2]
[311972741,1705523469121,-500.0,0.00022465,2]
[311972742,1705523469131,-500.0,0.00022465,2]
[311972743,1705523469140,-500.0,0.00022465,2]
[311972744,1705523469150,-647.39,0.00022465,2]
[311972745,1705523469162,-503.95,0.00022465,2]
[311972746,1705523469172,-500.0,0.00022465,2]
[311972747,1705523469182,-500.0,0.00022465,2]
[311972748,1705523469192,-500.0,0.00022465,2]
[311972749,1705523469202,-268.18,0.00022465,2]
[311972750,1705523469211,-5568.45,0.00022465,2]
[311972751,1705523469221,-500.0,0.00022465,2]
[311972752,1705523469231,-239.41,0.00022465,2]
[311972753,1705523469241,-847.82,0.00022465,2]
[311972754,1705523469251,-500.0,0.00022465,2]
[311972755,1705523469261,-500.0,0.00022465,2]
[311972756,1705523469271,-500.0,0.00022465,2]
[311972757,1705523469281,-500.0,0.00022465,2]
[311972758,1705523469291,-500.0,0.00022465,2]
[311972759,1705523469301,-567.65,0.00022465,2]
[311972760,1705523469312,-500.0,0.00022465,2]
[311972761,1705523469322,-500.0,0.00022465,2]
[311972762,1705523469332,-303.5,0.00022465,2]
[311972763,1705523469342,-500.0,0.00022465,2]
[311972764,1705523469351,-3571.55,0.00022465,2]
[311972765,1705523469361,-500.0,0.00022465,2]
[311972766,1705523469371,-500.0,0.00022465,2]
[311972767,1705523469380,-500.0,0.00022465,2]
[311972768,1705523469389,-500.0,0.00022465,2]
[311972769,1705523469398,-500.0,0.00022465,2]
[311972770,1705523469411,-500.0,0.00022465,2]
[311972771,1705523469421,-500.0,0.00022465,2]
[311972772,1705523469430,-403.15,0.00022465,2]
[311972773,1705523469440,-500.0,0.00022465,2]
[311972774,1705523469450,-500.0,0.00022465,2]
[311972775,1705523469459,-1364.29,0.00022465,2]
[311972776,1705523469469,-500.0,0.00022465,2]
[311972777,1705523469479,-500.0,0.00022465,2]
[311972778,1705523469489,-500.0,0.00022465,2]
[311972779,1705523469499,-500.0,0.00022465,2]
[311972780,1705523469508,-500.0,0.00022465,2]
[311972781,1705523469518,-500.0,0.00022465,2]
[311972782,1705523469527,-393.13,0.00022465,2]
[311972783,1705523469536,-2318.01,0.00022465,2]
[311972784,1705523469546,-500.0,0.00022465,2]
[311972785,1705523469555,-609.07,0.00022465,2]
[311972786,1705523469565,-500.0,0.00022465,2]
[311972787,1705523469575,-500.0,0.00022465,2]
[311972788,1705523469584,-500.0,0.00022465,2]
[311972789,1705523469595,-500.0,0.00022465,2]
[311972790,1705523469604,-554.51,0.00022465,2]
[311972791,1705523469615,-449.7,0.00022465,2]
[311972793,1705523469625,-500.0,0.00022465,2]
[311972794,1705523469634,-500.0,0.00022465,2]
[311972795,1705523469644,-500.0,0.00022465,2]
[311972796,1705523469654,-500.0,0.00022465,2]
[311972797,1705523469665,-500.0,0.00022465,2]
[311972798,1705523469675,-500.0,0.00022465,2]
[311972799,1705523469685,-500.0,0.00022465,2]
[311972800,1705523469695,-500.0,0.00022465,2]
[311972801,1705523469704,-178.42,0.00022465,2]
[311972802,1705523469714,-500.0,0.00022465,2]
[311972803,1705523469724,-500.0,0.00022465,2]
[311972804,1705523469733,-726.09,0.00022465,2]
[311972805,1705523469743,-500.0,0.00022465,2]
[311972806,1705523469753,-500.0,0.00022465,2]
[311972807,1705523469763,-1453.38,0.00022465,2]
[311972808,1705523469773,-936.04,0.00022465,2]
[311972809,1705523469783,-500.0,0.00022465,2]
[311972810,1705523469792,-537.49,0.00022465,2]
[311972811,1705523469802,-784.41,0.00022465,2]
[311972812,1705523469811,-500.0,0.00022465,2]
[311972813,1705523469821,-500.0,0.00022465,2]
[311972814,1705523469830,-500.0,0.00022465,2]
[311972815,1705523469840,-500.0,0.00022465,2]
[311972816,1705523469850,-500.0,0.00022465,2]
[311972817,1705523469859,-500.0,0.00022465,2]
[311972818,1705523469869,-562.24,0.00022465,2]
[311972819,1705523469879,-500.0,0.00022465,2]
[311972820,1705523469889,-5379.02,0.00022465,2]
[311972821,1705523469899,-500.0,0.00022465,2]
[311972822,1705523469910,-552.27,0.00022465,2]
[311972823,1705523469920,-500.0,0.00022465,2]
[311972824,1705523469929,-258.66,0.00022465,2]
[311972825,1705523469939,-594.53,0.00022465,2]
[311972826,1705523469948,-167.35,0.00022465,2]
[311972827,1705523469957,-500.0,0.00022465,2]
[311972828,1705523469968,-512.4,0.00022465,2]
[311972829,1705523469977,-1909.32,0.00022465,2]
[311972830,1705523469987,-231.84,0.00022465,2]
[311972831,1705523469997,-619.42,0.00022465,2]
[311972832,1705523470007,-500.0,0.00022465,2]
[311972833,1705523470017,-500.0,0.00022465,2]
[311972834,1705523470027,-500.0,0.00022465,2]
[311972835,1705523470037,-500.0,0.00022465,2]
[311972836,1705523470047,-500.0,0.00022465,2]
[311972837,1705523470056,-500.0,0.00022465,2]
[311972838,1705523470066,-500.0,0.00022465,2]
[311972839,1705523470076,-500.0,0.00022465,2]
[311972840,1705523470086,-500.0,0.00022465,2]
[311972841,1705523470096,-543.85,0.00022465,2]
[311972842,1705523470105,-500.0,0.00022465,2]
[311972843,1705523470115,-500.0,0.00022465,2]
[311972844,1705523470124,-500.0,0.00022465,2]
[311972845,1705523470134,-500.0,0.00022465,2]
[311972846,1705523470144,-500.0,0.00022465,2]
[311972847,1705523470153,-500.0,0.00022465,2]
[311972848,1705523470164,-611.67,0.00022465,2]